fUSD/lending_fUSD_20260107
["ID","MTS","AMOUNT","RATE_DAILY","PERIOD"]
[400747322,1767810642629,-150.0,0.000171,2]
[400747323,1767810642639,-817.0,0.000171,2]
[400747324,1767810642648,-500.0,0.000171,2]
[400747325,1767810642658,-500.0,0.000171,2]
[400747326,1767810642667,-1000.0,0.00017112,2]
[400747327,1767810642677,-300.0,0.00017133,2]
[400747328,1767810642686,-300.0,0.00017138,2]
[400747329,1767810642695,-872.0,0.00017155,2]
[400747330,1767810642704,-500.0,0.00017155,2]
[400747331,1767810642713,-150.0,0.00017155,2]
[400747332,1767810642723,-500.0,0.00017155,2]
[400747333,1767810642732,-150.0,0.00017155,2]
[400747334,1767810642742,-500.0,0.00017155,2]
[400747335,1767810642751,-500.0,0.00017155,2]
[400747336,1767810642765,-500.0,0.00017155,2]
[400747337,1767810642774,-500.0,0.00017155,2]
[400747338,1767810642784,-817.0,0.00017155,2]
[400747339,1767810642794,-500.0,0.00017155,2]
[400747340,1767810642803,-500.0,0.00017155,2]
[400747341,1767810642813,-300.0,0.0001716,2]
[400747342,1767810642822,-300.0,0.00017171,2]
[400747343,1767810642833,-300.0,0.00017177,2]
[400747344,1767810642843,-300.0,0.00017184,2]
[400747345,1767810642853,-299.888,0.00017191,2]
[400747346,1767810642863,-503.18143071,0.00017191,2]
[400747347,1767810642872,-847.22084679,0.00017191,2]
[400747348,1767810642882,-1284.1636215,0.000172,2]
[400747349,1767810642891,-872.0,0.0001721,2]
[400747350,1767810642901,-500.0,0.0001721,2]
[400747352,1767810642910,-150.0,0.0001721,2]
[400747353,1767810642920,-500.0,0.0001721,2]
[400747356,1767810642931,-150.0,0.0001721,2]
[400747357,1767810642941,-500.0,0.0001721,2]
[400747359,1767810642951,-500.0,0.0001721,2]
[400747361,1767810642960,-500.0,0.0001721,2]
[400747364,1767810642970,-519.25199485,0.0001721,2]
[400747366,1767810642980,-817.0,0.0001721,2]
[400747369,1767810642990,-500.0,0.0001721,2]
[400747372,1767810642999,-500.0,0.0001721,2]
[400747374,1767810643009,-300.0,0.00017212,2]
[400747377,1767810643018,-300.0,0.0001722,2]
[400747380,1767810643031,-300.0,0.00017223,2]
[400747382,1767810643041,-1929.0,0.00017226,2]
[400747383,1767810643050,-300.0,0.00017227,2]
[400747385,1767810643059,-300.0,0.00017233,2]
[400747386,1767810643068,-300.0,0.00017237,2]
[400747387,1767810643077,-509.09,0.00017244,2]
[400747388,1767810643086,-300.0,0.00017256,2]
[400747389,1767810643096,-433.0,0.00017257,2]
[400747390,1767810643109,-1929.0,0.00017261,2]
[400747391,1767810643119,-17971.76409481,0.00017262,2]
[400747392,1767810643129,-9357.35504013,0.00017262,2]
[400747393,1767810643139,-300.0,0.00017264,2]
[400747394,1767810643148,-1005.38555235,0.00017264,2]
[400747395,1767810643158,-872.0,0.00017264,2]
[400747396,1767810643167,-500.0,0.00017264,2]
[400747397,1767810643178,-150.0,0.00017264,2]
[400747398,1767810643187,-500.0,0.00017264,2]
[400747399,1767810643197,-150.0,0.00017264,2]
[400747400,1767810643206,-500.0,0.00017264,2]
[400747401,1767810643216,-500.0,0.00017264,2]
[400747402,1767810643225,-500.0,0.00017264,2]
[400747403,1767810643235,-2500.0,0.00017264,2]
[400747404,1767810643244,-2500.0,0.00017264,2]
[400747405,1767810643253,-817.0,0.00017264,2]
[400747406,1767810643262,-500.0,0.00017264,2]
[400747407,1767810643272,-500.0,0.00017264,2]
[400747408,1767810643284,-2500.0,0.00017264,2]
[400747409,1767810643293,-300.0,0.00017266,2]
[400747410,1767810643302,-300.0,0.00017272,2]
[400747411,1767810643312,-1929.0,0.00017278,2]
[400747412,1767810643321,-1745.62,0.00017284,2]
[400747413,1767810643330,-300.0,0.00017286,2]
[400747414,1767810643339,-300.0,0.00017286,2]
[400747415,1767810643348,-300.0,0.00017296,2]
[400747416,1767810643357,-300.0,0.00017304,2]
[400747417,1767810643367,-300.0,0.00017306,2]
[400747418,1767810643376,-595.37131296,0.00017311,2]
[400747419,1767810643386,-300.0,0.00017318,2]
[400747420,1767810643395,-872.0,0.00017319,2]
[400747421,1767810643405,-500.0,0.00017319,2]
[400747422,1767810643414,-179.16326783,0.00017319,2]
[400747423,1767810643424,-500.0,0.00017319,2]
[400747424,1767810643433,-285.51728142,0.00017319,2]
[400747425,1767810643443,-500.0,0.00017319,2]
[400747426,1767810643452,-194.00411142,0.00017319,2]
[400747427,1767810643465,-500.0,0.00017319,2]
[400747428,1767810643475,-817.0,0.00017319,2]
[400747429,1767810643486,-500.0,0.00017319,2]
[400747430,1767810643495,-500.0,0.00017319,2]
[400747431,1767810643507,-300.0,0.00017325,2]
[400747432,1767810643518,-300.0,0.0001733,2]
[400747433,1767810643530,-1767.0,0.00017357,2]
[400747434,1767810643539,-1929.0,0.00017361,2]
[400747435,1767810643548,-300.0,0.00017365,2]
[400747436,1767810643558,-1929.0,0.00017373,2]
[400747437,1767810643567,-872.0,0.00017374,2]
[400747438,1767810643576,-521.47480439,0.00017374,2]
[400747439,1767810643586,-500.0,0.00017374,2]
[400747440,1767810643595,-500.0,0.00017374,2]
[400747441,1767810643605,-500.0,0.00017374,2]
[400747442,1767810643616,-817.0,0.00017374,2]
[400747443,1767810643625,-500.0,0.00017374,2]
[400747444,1767810643635,-500.0,0.00017374,2]
[400747445,1767810643645,-300.0,0.00017382,2]
[400747446,1767810643654,-150.0,0.00017382,2]
[400747447,1767810643668,-300.0,0.00017394,2]
[400747448,1767810643679,-300.0,0.00017395,2]
[400747449,1767810643693,-150.0,0.00017396,2]
[400747450,1767810643704,-300.0,0.00017411,2]
[400747451,1767810643714,-300.0,0.00017414,2]
[400747452,1767810643724,-150.0,0.00017421,2]
[400747453,1767810643734,-300.0,0.00017424,2]
[400747454,1767810643744,-872.0,0.00017429,2]
[400747455,1767810643756,-500.0,0.00017429,2]
[400747456,1767810643767,-491.58151617,0.00017429,2]
[400747457,1767810643777,-500.0,0.00017429,2]
[400747458,1767810643787,-817.0,0.00017429,2]
[400747459,1767810643797,-500.0,0.00017429,2]
[400747460,1767810643807,-500.0,0.00017429,2]
[400747461,1767810643818,-258.65739244,0.00017434,2]
[400747462,1767810643828,-155.2,0.00017435,2]
[400747463,1767810643839,-150.0,0.00017445,2]
[400747464,1767810643848,-300.0,0.00017454,2]
[400747465,1767810643861,-1767.0,0.00017457,2]
[400747466,1767810643872,-30000.0,0.00017459,2]
[400747467,1767810643881,-300.0,0.00017461,2]
[400747468,1767810643891,-300.0,0.00017463,2]
[400747469,1767810643901,-300.0,0.00017469,2]
[400747470,1767810643910,-150.0,0.00017475,2]
[400747471,1767810643920,-300.0,0.00017483,2]
[400747472,1767810643930,-872.0,0.00017484,2]
[400747473,1767810643940,-500.0,0.00017484,2]
[400747474,1767810643950,-500.0,0.00017484,2]
[400747475,1767810643960,-817.0,0.00017484,2]
[400747476,1767810643969,-500.0,0.00017484,2]
[400747477,1767810643979,-500.0,0.00017484,2]
[400747478,1767810643988,-300.0,0.00017488,2]
[400747479,1767810643998,-2000.0,0.000175,2]
[400747480,1767810644008,-300.0,0.000175,2]
[400747481,1767810644017,-1600.70015005,0.000175,2]
[400747482,1767810644027,-310.4,0.00017505,2]
[400747483,1767810644036,-300.0,0.0001751,2]
[400747484,1767810644046,-509.09,0.00017512,2]
[400747485,1767810644058,-300.0,0.00017521,2]
[400747486,1767810644067,-1929.0,0.00017521,2]
[400747487,1767810644078,-300.0,0.00017526,2]
[400747488,1767810644089,-1688.95959214,0.00017527,2]
[400747489,1767810644099,-1040.82358149,0.00017534,2]
[400747490,1767810644109,-300.0,0.00017536,2]
[400747491,1767810644121,-872.0,0.00017538,2]
[400747492,1767810644130,-500.0,0.00017538,2]
[400747493,1767810644139,-500.0,0.00017538,2]
[400747494,1767810644149,-817.0,0.00017538,2]
[400747495,1767810644160,-517.05568559,0.00017538,2]
[400747496,1767810644170,-500.0,0.00017538,2]
[400747497,1767810644181,-150.0,0.00017542,2]
[400747498,1767810644191,-1284.1636215,0.0001755,2]
[400747499,1767810644200,-150.0,0.00017552,2]
[400747500,1767810644210,-300.0,0.00017554,2]
[400747501,1767810644219,-1745.62,0.00017558,2]
[400747502,1767810644228,-300.0,0.0001756,2]
[400747503,1767810644238,-150.0,0.00017572,2]
[400747504,1767810644250,-827.5,0.00017574,2]
[400747505,1767810644260,-150.0,0.00017576,2]
[400747506,1767810644269,-300.0,0.0001758,2]
[400747507,1767810644279,-17971.76409481,0.00017581,2]
[400747508,1767810644289,-9357.35504013,0.00017581,2]
[400747509,1767810644300,-300.0,0.00017584,2]
[400747510,1767810644309,-300.0,0.00017587,2]
[400747512,1767810644319,-500.0,0.00017589,2]
[400747514,1767810644329,-857.95,0.00017592,2]
[400747515,1767810644340,-872.0,0.00017593,2]
[400747516,1767810644349,-500.0,0.00017593,2]
[400747517,1767810644359,-500.0,0.00017593,2]
[400747518,1767810644369,-817.0,0.00017593,2]
[400747519,1767810644379,-500.0,0.00017593,2]
[400747520,1767810644388,-300.0,0.00017597,2]
[400747521,1767810644398,-150.0,0.00017613,2]
[400747522,1767810644408,-500.0,0.00017613,2]
[400747523,1767810644417,-300.0,0.00017617,2]
[400747524,1767810644427,-300.0,0.00017618,2]
[400747525,1767810644436,-300.0,0.00017638,2]
[400747526,1767810644446,-300.0,0.00017641,2]
[400747527,1767810644455,-872.0,0.00017648,2]
[400747528,1767810644465,-500.0,0.00017648,2]
[400747529,1767810644475,-500.0,0.00017648,2]
[400747530,1767810644484,-817.0,0.00017648,2]
[400747531,1767810644494,-500.0,0.00017648,2]
[400747532,1767810644503,-150.0,0.00017653,2]
[400747533,1767810644513,-1767.0,0.00017653,2]
[400747534,1767810644523,-1118.95,0.00017664,2]
[400747535,1767810644533,-300.0,0.00017666,2]
[400747536,1767810644542,-300.0,0.00017667,2]
[400747537,1767810644553,-150.0,0.00017669,2]
[400747538,1767810644562,-300.0,0.00017677,2]
[400747539,1767810644572,-357.7,0.00017677,2]
[400747540,1767810644582,-466.59,0.00017677,2]
[400747541,1767810644592,-178.94,0.00017677,2]
[400747542,1767810644602,-300.0,0.0001769,2]
[400747543,1767810644612,-161.58,0.00017693,2]
[400747544,1767810644623,-1330.0,0.00017693,2]
[400747545,1767810644633,-1405.0,0.00017693,2]
[400747546,1767810644643,-1000.0,0.000177,2]
[400747547,1767810644654,-872.0,0.00017703,2]
[400747548,1767810644664,-500.0,0.00017703,2]
[400747549,1767810644674,-500.0,0.00017703,2]
[400747550,1767810644684,-817.0,0.00017703,2]
[400747551,1767810644965,-500.0,0.00017703,2]
[400747552,1767810645003,-634.29540262,0.00017706,2]
[400747553,1767810645015,-1000.0,0.00017709,2]
[400747554,1767810645024,-787.35487633,0.00017712,2]
[400747555,1767810645035,-150.0,0.00017726,2]
[400747556,1767810645044,-150.0,0.00017726,2]
[400747557,1767810645053,-281.40504741,0.00017726,2]
[400747558,1767810645063,-174.06741652,0.00017726,2]
[400747559,1767810645073,-300.0,0.0001773,2]
[400747560,1767810645082,-300.0,0.00017732,2]
[400747561,1767810645091,-1767.0,0.00017735,2]
[400747562,1767810645101,-300.0,0.00017735,2]
[400747563,1767810645110,-25000.0,0.00017742,3]
[400747564,1767810645120,-300.0,0.00017747,2]
[400747565,1767810645129,-300.0,0.00017748,2]
[400747566,1767810645138,-787.35487633,0.0001775,2]
[400747567,1767810645147,-25000.0,0.0001775,3]
[400747568,1767810645157,-300.0,0.00017755,2]
[400747569,1767810645167,-872.0,0.00017758,2]
[400747570,1767810645176,-500.0,0.00017758,2]
[400747571,1767810645185,-500.0,0.00017758,2]
[400747572,1767810645194,-817.0,0.00017758,2]
[400747573,1767810645203,-500.0,0.00017758,2]
[400747574,1767810645214,-25000.0,0.00017759,3]
[400747575,1767810645223,-25000.0,0.00017768,3]
[400747576,1767810645233,-150.0,0.00017769,2]
[400747577,1767810645243,-300.0,0.00017772,2]
[400747578,1767810645252,-15846.8495703,0.00017777,3]
[400747586,1767810645833,-9153.1504297,0.00017777,3]
[400747588,1767810645842,-300.0,0.00017779,2]
[400747590,1767810645852,-150.0,0.00017781,2]
[400747593,1767810645863,-199.62704522,0.00017781,2]
[400747595,1767810645872,-150.0,0.00017784,2]
[400747598,1767810645882,-25000.0,0.00017786,3]
[400747600,1767810645891,-787.35487633,0.00017787,2]
[400747602,1767810645900,-150.0,0.0001779,2]
[400747604,1767810645909,-339.4,0.00017794,2]
[400747605,1767810645918,-25000.0,0.00017794,3]
[400747606,1767810645928,-300.0,0.00017799,2]
[400747607,1767810645938,-300.0,0.000178,2]
[400747608,1767810645947,-1000.0,0.000178,2]
[400747609,1767810645957,-300.0,0.00017801,2]
[400747610,1767810645966,-634.2954026,0.00017803,2]
[400747611,1767810645976,-25000.0,0.00017803,3]
[400747612,1767810645986,-300.0,0.00017806,2]
[400747613,1767810645995,-339.4,0.00017808,2]
[400747614,1767810646005,-173.42,0.00017809,2]
[400747615,1767810646015,-25000.0,0.00017812,3]
[400747616,1767810646025,-872.0,0.00017812,2]
[400747617,1767810646035,-500.0,0.00017812,2]
[400747618,1767810646044,-500.0,0.00017812,2]
[400747619,1767810646054,-920.08311721,0.00017812,2]
[400747620,1767810646063,-3000.0,0.00017812,2]
[400747621,1767810646074,-817.0,0.00017812,2]
[400747622,1767810646083,-500.0,0.00017812,2]
[400747623,1767810646093,-3000.0,0.00017812,2]
[400747624,1767810646102,-300.0,0.00017813,2]
[400747625,1767810646111,-4637.49471,0.0001782,2]
[400747626,1767810646121,-4637.49472,0.0001782,2]
[400747627,1767810646130,-25000.0,0.00017821,3]
[400747628,1767810646139,-300.0,0.00017821,2]
[400747629,1767810646150,-339.3980778,0.00017822,2]
[400747630,1767810646159,-300.0,0.00017823,2]
[400747631,1767810646168,-787.35487633,0.00017825,2]
[400747632,1767810646179,-25000.0,0.0001783,3]
[400747633,1767810646188,-261.94980575,0.0001783,2]
[400747634,1767810646198,-300.0,0.0001783,2]
[400747635,1767810646208,-4637.49471,0.0001783,2]
[400747636,1767810646219,-1745.62,0.00017832,2]
[400747637,1767810646229,-150.0,0.00017836,2]
[400747638,1767810646238,-300.0,0.00017837,2]
[400747639,1767810646247,-25000.0,0.00017838,3]
[400747640,1767810646257,-300.0,0.00017839,2]
[400747641,1767810646266,-150.0,0.00017841,2]
[400747642,1767810646278,-300.0,0.00017842,2]
[400747643,1767810646289,-300.0,0.00017844,2]
[400747644,1767810646298,-300.0,0.00017844,2]
[400747645,1767810646308,-300.0,0.00017847,2]
[400747646,1767810646318,-25000.0,0.00017847,3]
[400747647,1767810646326,-25000.0,0.00017856,3]
[400747648,1767810646336,-617.40005154,0.00017859,2]
[400747649,1767810646345,-4637.49472,0.0001786,2]
[400747650,1767810646355,-787.35487633,0.00017862,2]
[400747651,1767810646374,-25000.0,0.00017865,3]
[400747652,1767810646384,-872.0,0.00017867,2]
[400747653,1767810646394,-500.0,0.00017867,2]
[400747654,1767810646404,-500.0,0.00017867,2]
[400747655,1767810646414,-817.0,0.00017867,2]
[400747656,1767810646423,-300.0,0.00017872,2]
[400747657,1767810646433,-150.0,0.00017872,2]
[400747658,1767810646444,-300.0,0.00017873,2]
[400747659,1767810646454,-25000.0,0.00017874,3]
[400747660,1767810646463,-4637.49472,0.0001788,2]
[400747661,1767810646473,-25000.0,0.00017882,3]
[400747662,1767810646482,-587.0,0.00017884,2]
[400747663,1767810646492,-300.0,0.00017886,2]
[400747664,1767810646502,-281.23799714,0.0001789,2]
[400747665,1767810646511,-25000.0,0.00017891,3]
[400747666,1767810646521,-300.0,0.00017893,2]
[400747667,1767810646533,-500.0,0.00017899,2]
[400747668,1767810646542,-25000.0,0.000179,3]
[400747669,1767810646552,-634.2954026,0.000179,2]
[400747670,1767810646561,-1284.1636215,0.000179,2]
[400747671,1767810646571,-1000.0,0.000179,2]
[400747672,1767810646580,-17971.76409481,0.000179,2]
[400747673,1767810646589,-9357.35504013,0.000179,2]
[400747674,1767810646599,-5658.07166192,0.000179,2]
[400747675,1767810646608,-787.35487633,0.000179,2]
[400747676,1767810646618,-500.0,0.000179,2]
[400747677,1767810646627,-500.0,0.000179,2]
[400747678,1767810646636,-500.0,0.000179,2]
[400747679,1767810646646,-500.0,0.000179,2]
[400747680,1767810646661,-500.0,0.000179,2]
[400747681,1767810646676,-500.0,0.000179,2]
[400747682,1767810646694,-500.0,0.000179,2]
[400747683,1767810646710,-500.0,0.000179,2]
[400747684,1767810646719,-500.0,0.000179,2]
[400747685,1767810646729,-500.0,0.000179,2]
[400747686,1767810646739,-500.0,0.000179,2]
[400747687,1767810646750,-313.34622116,0.000179,2]
[400747688,1767810646762,-10741.0,0.000179,2]
[400747689,1767810646772,-300.0,0.00017905,2]
[400747690,1767810646785,-300.0,0.00017907,2]
[400747691,1767810646794,-4637.49471,0.0001791,2]
[400747692,1767810646804,-150.0,0.00017914,2]
[400747693,1767810646814,-300.0,0.00017919,2]
[400747694,1767810646824,-872.0,0.00017922,2]
[400747695,1767810646835,-406.89851448,0.00017922,2]
[400747696,1767810646845,-500.0,0.00017922,2]
[400747697,1767810646855,-817.0,0.00017922,2]
[400747698,1767810646865,-151.57655384,0.00017938,2]
[400747699,1767810646875,-150.0,0.00017945,2]
[400747700,1767810646884,-161.23858714,0.00017961,2]
[400747701,1767810646894,-983.46328676,0.0001797,2]
[400747702,1767810646904,-1000.0,0.0001797,2]
[400747703,1767810646914,-1000.0,0.0001797,2]
[400747704,1767810646924,-1000.0,0.0001797,2]
[400747705,1767810646933,-1109.90852601,0.0001797,2]
[400747706,1767810646943,-150.0,0.00017973,2]
[400747707,1767810646952,-150.0,0.00017973,2]
[400747708,1767810646963,-230.0,0.00017974,2]
[400747709,1767810646973,-872.0,0.00017977,2]
[400747710,1767810646983,-500.0,0.00017977,2]
[400747711,1767810646992,-817.0,0.00017977,2]
[400747712,1767810647002,-300.0,0.00017979,2]
[400747713,1767810647012,-300.0,0.0001799,2]
[400747714,1767810647026,-1455.64956121,0.0001799,2]
[400747715,1767810647124,-1455.64956121,0.0001799,2]
[400747716,1767810647134,-300.0,0.00017991,2]
[400747717,1767810647143,-151.0,0.00017992,2]
[400747718,1767810647153,-240.00797937,0.00017994,2]
[400747719,1767810647162,-9741.415,0.00017995,2]
[400747720,1767810647171,-864996.1952706,0.00017995,2]
[400747721,1767810647181,-151.0,0.00017997,2]
[400747722,1767810647191,-715.02109649,0.00017998,2]
[400747723,1767810647200,-159.16173195,0.00017998,2]
[400747724,1767810647211,-636.01028086,0.00017998,2]
[400747725,1767810647220,-395.10952792,0.00017999,2]
[400747726,1767810647230,-300.0,0.00017999,2]
[400747727,1767810647239,-300.0,0.00017999,2]
[400747728,1767810647248,-300.0,0.00017999,2]
[400747729,1767810647258,-666.0,0.00017999,2]
[400747730,1767810647267,-300.0,0.00017999,2]
[400747731,1767810647276,-500.0,0.00017999,2]
[400747732,1767810647286,-500.0,0.00017999,2]
[400747733,1767810647295,-500.0,0.00017999,2]
[400747734,1767810647305,-500.0,0.00017999,2]
[400747735,1767810647314,-500.0,0.00017999,2]
[400747736,1767810647323,-500.0,0.00017999,2]
[400747737,1767810647332,-500.0,0.00017999,2]
[400747738,1767810647342,-418.72652128,0.00017999,2]
[400747739,1767810647351,-184.89145749,0.00017999,2]
[400747740,1767810647360,-357.10757348,0.00017999,2]
[400747741,1767810647370,-300.0,0.00017999,2]
[400747742,1767810647379,-300.0,0.00017999,2]
[400747743,1767810647389,-300.0,0.00017999,2]
[400747744,1767810647399,-666.0,0.00017999,2]
[400747745,1767810647409,-5826.21400436,0.00017999,2]
[400747746,1767810647419,-4662844.1324239,0.00018,2]
[400747747,1767810647432,-1221.00880848,0.00018,2]
[400747748,1767810647484,-3647.13980468,0.00018,2]
[400747749,1767810649059,-907.40552681,0.00018,2]
[400747750,1767810649090,-6396.20000012,0.00018,2]
[400747751,1767810649201,-4365.43074627,0.00018,2]
[400747752,1767810649212,-372.34049029,0.00018,2]
[400747753,1767810649223,-393.66239999,0.00018,2]
[400747754,1767810649255,-1000.74936738,0.00018,2]
[400747755,1767810649267,-1358.10438257,0.00018,2]
[400747756,1767810649362,-596.298,0.00018,2]
[400747757,1767810649682,-1.7e-07,0.00018,2]
[400747758,1767810652634,-3467.0,0.00017693,2]
[400747759,1767810652643,-300.0,0.0001771,2]
[400747760,1767810652652,-300.0,0.00017779,2]
[400747761,1767810652661,-300.0,0.00017798,2]
[400747762,1767810652670,-300.0,0.00017814,2]
[400747763,1767810652680,-300.0,0.00017818,2]
[400747764,1767810652690,-300.0,0.0001783,2]
[400747765,1767810652699,-300.0,0.00017863,2]
[400747766,1767810652708,-300.0,0.00017865,2]
[400747767,1767810652717,-300.0,0.00017895,2]
[400747768,1767810652726,-300.0,0.00017902,2]
[400747769,1767810652735,-300.0,0.00017917,2]
[400747770,1767810652745,-300.0,0.00017927,2]
[400747771,1767810652755,-300.0,0.00017934,2]
[400747772,1767810652768,-42972.78156996,0.00018,2]
[400747773,1767810652795,-500.0,0.00015366,2]
[400747774,1767810652805,-300.0,0.00017939,2]
[400747775,1767810652815,-110.61,0.00018,2]
[400747776,1767810653318,-217.37935842,0.00015015,2]
[400747777,1767810653328,-65.75852213,0.00015099,2]
[400747778,1767810655077,-434.24147787,0.00015099,2]
[400747779,1767810655087,-500.0,0.00015099,2]
[400747780,1767810655097,-74.91419374,0.00015099,2]
[400747781,1767810655109,-112.53278307,0.00015099,2]
[400747782,1767810655120,-163.49161603,0.00015099,2]
[400747783,1767810655130,-398.9473792,0.00015366,2]
[400747784,1767810655142,-75.35243908,0.00015366,2]
[400747785,1767810655151,-316.39756092,0.0001764,2]
[400747786,1767810655256,-682.90291798,0.00015099,2]
[400747787,1767810655265,-682.90291798,0.00015099,2]
[400747788,1767810655277,-1045.27270704,0.0001764,2]
[400747789,1767810658134,500.0,0.00014928,2]
[400747790,1767810658578,608.80319804,0.00014928,2]
[400747791,1767810659386,500.0,0.00014928,2]
[400747792,1767810659487,187.67575698,0.00014928,2]
[400747793,1767810659530,500.0,0.00014928,2]
[400747794,1767810659581,476.53337256,0.00014928,2]
[400747795,1767810660913,-23.46662744,0.00014928,2]
[400747796,1767810660939,-500.0,0.00014928,2]
[400747797,1767810660964,-111.60591171,0.00014928,2]
[400747798,1767810668727,-258.6558289,0.00014928,2]
[400747799,1767810674491,-129.73825939,0.00014928,2]
[400747800,1767810674518,-99.24258852,0.00014928,2]
[400747801,1767810678878,-400.75741148,0.00014928,2]
[400747802,1767810678904,-42.718576,0.00014928,2]
[400747803,1767810681619,-286.41327817,0.00014928,2]
[400747804,1767810683028,-170.86814583,0.00014928,2]
[400747805,1767810683054,-84.51802512,0.00014928,2]
[400747806,1767810694139,151.0,0.000147,2]
[400747807,1767810701505,-1332.945,0.000147,2]
[400747808,1767810701535,-165.283,0.000147,2]
[400747809,1767810701565,-194.26197488,0.00014928,2]
[400747810,1767810701595,-500.0,0.00014928,2]
[400747811,1767810701623,-486.81068586,0.00014928,2]
[400747812,1767810701652,-500.0,0.00014928,2]
[400747813,1767810701682,-454.59213386,0.00014928,2]
[400747814,1767810701713,-250.60316456,0.00014928,2]
[400747815,1767810701745,-500.0,0.00014928,2]
[400747816,1767810701778,-590.29886971,0.00014928,2]
[400747817,1767810707411,-500.0,0.00014928,2]
[400747818,1767810707443,-500.0,0.00014928,2]
[400747819,1767810707476,-500.0,0.00014928,2]
[400747820,1767810707507,-500.0,0.00014928,2]
[400747821,1767810707541,-500.0,0.00014928,2]
[400747822,1767810707572,-500.0,0.00014928,2]
[400747823,1767810707603,-500.0,0.00014928,2]
[400747824,1767810707636,-500.0,0.00014928,2]
[400747825,1767810707667,-500.0,0.00014928,2]
[400747826,1767810707698,-500.0,0.00014928,2]
[400747830,1767810713721,-500.0,0.00014928,2]
[400747831,1767810713754,-500.0,0.00014928,2]
[400747832,1767810713792,-500.0,0.00014928,2]
[400747833,1767810713825,-500.0,0.00014928,2]
[400747834,1767810713860,-500.0,0.00014928,2]
[400747835,1767810713894,-500.0,0.00014928,2]
[400747836,1767810713926,-500.0,0.00014928,2]
[400747837,1767810713958,-500.0,0.00014928,2]
[400747838,1767810713990,-500.0,0.00014928,2]
[400747839,1767810714023,-500.0,0.00014928,2]
[400747850,1767810815872,208.0,9.989e-05,2]
[400747851,1767810817002,208.0,9.989e-05,2]
[400747855,1767810847196,166.66,0.00013928,2]
[400747856,1767810850282,-162.80669965,0.00014221,2]
[400747861,1767810896263,-3.85330035,0.00014221,2]
[400747862,1767810896286,-294.50505212,0.00014389,2]
[400747863,1767810900375,-205.49494788,0.00014389,2]
[400747864,1767810900395,-30.82954114,0.00014515,2]
[400747865,1767810915540,-135.83045886,0.00014515,2]
[400747866,1767810915571,-166.66,0.00014808,2]
[400747867,1767810915600,-2500.0,0.00014829,2]
[400747868,1767810915630,-150.0,0.00014927,2]
[400747869,1767810915659,-300.0,0.00014928,2]
[400747870,1767810915689,-1200.0,0.00014928,2]
[400747871,1767810921365,-4284.0536164,0.00014929,2]
[400747872,1767810921398,-18.41674957,0.00014929,2]
[400747873,1767810927386,-1395.06926806,0.00014929,2]
[400747874,1767810927419,-217.37935842,0.00014929,2]
[400747875,1767810927451,-3219.0698932,0.00014929,2]
[400747876,1767810927549,-104.49932566,0.00014929,2]
[400747877,1767810985177,-232.47363498,0.00014929,2]
[400747878,1767810985200,-67.52636502,0.00014929,2]
[400747879,1767810988472,-218.25828281,0.00014929,2]